{"text_format":"3","workbook":"xlsx","n_sheets":4,"sheets":["Angebotsformular","Diagrammdaten","Aufschlüsselung der Kosten","Übersicht der Angebotskosten"],"not_rendered":{"charts":1,"images":2,"defined_names":11},"read":"whole","date_system":"1900"}

{"sheet":"Angebotsformular","index":0,"n_rows":21,"n_cols":6,"rows_kept":21,"merged":[[0,1,0,4],[1,1,1,2],[1,4,1,5],[7,1,8,1],[7,2,8,2],[10,1,10,5],[12,1,12,5],[14,1,14,5],[15,1,15,2],[15,4,15,5],[16,1,16,2],[16,4,16,5],[18,1,18,5],[19,1,19,2],[19,4,19,5],[20,1,20,2],[20,4,20,5]]}
[null,"Bauangebotsformular"]
[null,"Informationen zum Besitzer",null,null,"Auftragnehmerinformationen"]
[null,"Name","Namen des Besitzers in diese Zelle eingeben",null,"Firma","Firmennamen des Bauunternehmens in diese Zelle eingeben"]
[null,"Adresse","Adresse des Besitzers in diese Zelle eingeben",null,"Name","Namen des Bauunternehmens in diese Zelle eingeben"]
[null,"PLZ Stadt, Bundesland","Ort, Bundesland und Postleitzahl der Adresse des Besitzers in diese Zelle eingeben",null,"Adresse","Adresse des Bauunternehmens in diese Zelle eingeben"]
[null,"Telefon","Telefonnummer des Besitzers in diese Zelle eingeben",null,"PLZ Stadt, Bundesland","Ort, Bundesland und Postleitzahl der Adresse des Bauunternehmens in diese Zelle eingeben"]
[null,"E-Mail","E-Mail-Adresse des Besitzers in diese Zelle eingeben",null,"Telefon","Telefonnummer des Bauunternehmens in diese Zelle eingeben"]
[null,"Projektname","Projektnamen in diese Zelle eingeben",null,"E-Mail","E-Mail-Adresse des Bauunternehmens in diese Zelle eingeben "]
[{"$nulls":4},"Datum des Abschlusses","Fertigstellungsdatum in diese Zelle eingeben"]
[null,"Umfang der Arbeiten"]
[null,"Projektumfang hier einfügen. Geben Sie alle gewünschten Spezifikationen ein. \n\nBeispieltext: Dies ist ein Projektmodell für den Bau einer großen Treppe. Für die Konstruktion des Rahmens werden nur Bauholz (2x4 und 2x8) und Trägerhalterungen verwendet. Die Treppe wird aus dem 2x4-Material geschnitten. Es werden Schrauben mit mindestens 2\" verwendet. Die Nagelgröße beträgt mindestens 10 Penny. Der Entwurf soll ein Gewicht von mindestens 500 Pfund pro Schritt halten. Die Stufen sind auf demselben Niveau wie die des Hauses. Es wird ein Trittbrett am Haus angebracht. Auftragnehmer übernimmt die Reinigung."]
[null,"Nicht enthalten"]
[null,"Projektdetails, die nicht enthalten sind, hier einfügen. Geben Sie alle Elemente ein, die nicht in diesem Angebot enthalten sind. \n\nBeispieltext: Es wird kein Geländer angebracht. Der Boden muss vom Besitzer vorbereitet werden. Die Treppe wird vom Besitzer gestrichen."]
[null,"Firmenangebot"]
[null,"Firmenangebot hier einfügen. Geben Sie eine Zusammenfassung des Angebots an, einschließlich Informationen dazu, wer das Angebot macht, wann das voraussichtliche Fertigstellungsdatum ist und wie hoch die Kosten für das Angebot sind.\n\nBeispieltext: Wir, Firmenname, bieten den oben stehenden Arbeitsumfang mit Fertigstellung bis zum Datum der Fertigstellung für den Betrag von Gesamtbetrag an."]
[]
[null,"Gesendet von (Vertreter des Unternehmens)",null,null,"Datum"]
[null,"Annahme durch Besitzer"]
[null,"Annahme durch Besitzer hier einfügen. Geben Sie den Namen des Besitzers in die Bestätigungserklärung ein, die das Fertigstellungsdatum und den im Firmenangebot enthaltenen Gesamtbetrag enthält. \n\nBeispieltext: Ich, Name des Besitzers, gebe den oben stehenden Arbeitsumfang mit voraussichtlicher Fertigstellung bis zum Datum der Fertigstellung für den Betrag von Gesamtbetrag in Auftrag."]
[]
[null,"Gesendet von (Hausbesitzer oder autorisierter Vertreter)",null,null,"Datum"]

{"sheet":"Diagrammdaten","index":1,"n_rows":7,"n_cols":3,"rows_kept":7,"hidden":true}
[]
[null,null,"Ergebnis"]
[null,{"$f":"INDEX(Gebotspositionen[#Data],MATCH(1,Gebotspositionen[Aufgeführte Kosten],0),2)","v":"Arbeiterkosten"},{"$f":"INDEX(Gebotspositionen[#Data],MATCH(1,Gebotspositionen[Aufgeführte Kosten],0),4)","v":200}]
[null,{"$f":"INDEX(Gebotspositionen[#Data],MATCH(2,Gebotspositionen[Aufgeführte Kosten],0),2)","v":"Bauholz (2x4x10)"},{"$f":"INDEX(Gebotspositionen[#Data],MATCH(2,Gebotspositionen[Aufgeführte Kosten],0),4)","v":99.39999999999999}]
[null,{"$f":"INDEX(Gebotspositionen[#Data],MATCH(3,Gebotspositionen[Aufgeführte Kosten],0),2)","v":"Trägerhalterungen"},{"$f":"INDEX(Gebotspositionen[#Data],MATCH(3,Gebotspositionen[Aufgeführte Kosten],0),4)","v":74.7}]
[null,{"$f":"INDEX(Gebotspositionen[#Data],MATCH(4,Gebotspositionen[Aufgeführte Kosten],0),2)","v":"Bauholz (2x8x10)"},{"$f":"INDEX(Gebotspositionen[#Data],MATCH(4,Gebotspositionen[Aufgeführte Kosten],0),4)","v":33.75}]
[null,{"$f":"INDEX(Gebotspositionen[#Data],MATCH(5,Gebotspositionen[Aufgeführte Kosten],0),2)","v":"Ein Paar Handschuhe, Leder"},{"$f":"INDEX(Gebotspositionen[#Data],MATCH(5,Gebotspositionen[Aufgeführte Kosten],0),4)","v":15.5}]

{"sheet":"Aufschlüsselung der Kosten","index":2,"n_rows":14,"n_cols":6,"rows_kept":14,"merged":[[0,1,0,4],[1,1,1,4]]}
[null,"Aufschlüsselung der Kosten",{"$nulls":3}," "]
[null,"Liste der Materialien und Kosten"]
[null,"Mge.","Beschreibung","Kosten","Ergebnis","Aufgeführte Kosten"]
[null,5,"Bauholz (2x8x10)",{"v":6.75,"d":"6.75 €"},{"$f":"IFERROR(Gebotspositionen[[#This Row],[Kosten]]*Gebotspositionen[[#This Row],[Mge.]], \"\")","v":{"v":33.75,"d":"33.75 €"}},{"$f":"_xlfn.RANK.EQ(Gebotspositionen[[#This Row],[Ergebnis]],Gebotspositionen[Ergebnis])","v":4}]
[null,20,"Bauholz (2x4x10)",{"v":4.97,"d":"4.97 €"},{"$f":"IFERROR(Gebotspositionen[[#This Row],[Kosten]]*Gebotspositionen[[#This Row],[Mge.]], \"\")","v":{"v":99.39999999999999,"d":"99.40 €"}},{"$f":"_xlfn.RANK.EQ(Gebotspositionen[[#This Row],[Ergebnis]],Gebotspositionen[Ergebnis])","v":2}]
[null,30,"Trägerhalterungen",{"v":2.49,"d":"2.49 €"},{"$f":"IFERROR(Gebotspositionen[[#This Row],[Kosten]]*Gebotspositionen[[#This Row],[Mge.]], \"\")","v":{"v":74.7,"d":"74.70 €"}},{"$f":"_xlfn.RANK.EQ(Gebotspositionen[[#This Row],[Ergebnis]],Gebotspositionen[Ergebnis])","v":3}]
[null,2,"Packung Schrauben, 2“",{"v":6.67,"d":"6.67 €"},{"$f":"IFERROR(Gebotspositionen[[#This Row],[Kosten]]*Gebotspositionen[[#This Row],[Mge.]], \"\")","v":{"v":13.34,"d":"13.34 €"}},{"$f":"_xlfn.RANK.EQ(Gebotspositionen[[#This Row],[Ergebnis]],Gebotspositionen[Ergebnis])","v":6}]
[null,2,"Packung Nägel, 10 Penny",{"v":3.25,"d":"3.25 €"},{"$f":"IFERROR(Gebotspositionen[[#This Row],[Kosten]]*Gebotspositionen[[#This Row],[Mge.]], \"\")","v":{"v":6.5,"d":"6.50 €"}},{"$f":"_xlfn.RANK.EQ(Gebotspositionen[[#This Row],[Ergebnis]],Gebotspositionen[Ergebnis])","v":7}]
[null,2,"Ein Paar Handschuhe, Leder",{"v":7.75,"d":"7.75 €"},{"$f":"IFERROR(Gebotspositionen[[#This Row],[Kosten]]*Gebotspositionen[[#This Row],[Mge.]], \"\")","v":{"v":15.5,"d":"15.50 €"}},{"$f":"_xlfn.RANK.EQ(Gebotspositionen[[#This Row],[Ergebnis]],Gebotspositionen[Ergebnis])","v":5}]
[null,2,"Arbeiterkosten",{"v":100,"d":"100.00 €"},{"$f":"IFERROR(Gebotspositionen[[#This Row],[Kosten]]*Gebotspositionen[[#This Row],[Mge.]], \"\")","v":{"v":200,"d":"200.00 €"}},{"$f":"_xlfn.RANK.EQ(Gebotspositionen[[#This Row],[Ergebnis]],Gebotspositionen[Ergebnis])","v":1}]
[{"$nulls":3},"Zwischensumme",{"$f":"SUBTOTAL(109,Gebotspositionen[Ergebnis])","v":{"v":443.18999999999994,"d":"443.19 €"}}]
[{"$nulls":3},"Steuersatz",{"v":0.075,"d":"7.50%"}]
[{"$nulls":3},"Steuern",{"$f":"IFERROR(SteuerSatz*Gebotspositionen[[#Totals],[Ergebnis]], \"\")","v":{"v":33.23924999999999,"d":"33.24 €"}}]
[{"$nulls":3},"Gesamtsumme",{"$f":"IFERROR(Steuern+Gebotspositionen[[#Totals],[Ergebnis]], \"\")","v":{"v":476.4292499999999,"d":"476.43 €"}}]

{"sheet":"Übersicht der Angebotskosten","index":3,"n_rows":3,"n_cols":4,"rows_kept":3,"merged":[[1,1,1,2],[2,1,2,2]]}
[null,"Übersicht der Angebotskosten"]
[null,"Aufschlüsselung der Materialien und Kosten",null,"Anmerkungen"]
[null,"Kreisdiagramm mit Top-5-Kosten pro Material. Daten basieren auf Angebotselementtabelle im Arbeitsblatt „Kostenaufschlüsselung“.",null,"Anmerkungen in diese Zelle eingeben"]